bitfinex-derivatives/quotes_BNBF0:USTF0_20250630
["timestamp","ask_amount","ask_price","bid_price","bid_amount"]
[1751314691694,0.26357247,660.66,659.95,1.14266509]
[1751314691893,0.26357247,660.66,659.96,1.14266509]
[1751314692094,0.26357247,660.66,659.97,1.14266509]
[1751314692292,0.26357247,660.66,659.98,1.14266509]
[1751314692496,0.26357247,660.66,659.99,1.14266509]
[1751314692797,0.26357247,660.66,660.0,1.14266509]
[1751314692995,0.26357247,660.66,660.01,1.14266509]
[1751314693198,0.26357247,660.66,659.45,1.50374208]
[1751314693199,0.26357247,660.66,660.02,1.14266509]
[1751314693396,0.26357247,660.66,659.68,1.13298524]
[1751314693595,0.26357247,660.66,659.69,1.14251472]
[1751314693900,0.26357247,660.66,659.7,1.14251472]
[1751314694095,0.26357247,660.66,659.71,1.14251472]
[1751314694397,0.26357247,660.66,659.72,1.14251472]
[1751314694600,0.26357247,660.66,659.73,1.14251472]
[1751314694895,0.26357247,660.66,659.74,1.14251472]
[1751314695101,0.26357247,660.66,659.75,1.14251472]
[1751314695299,0.26357247,660.66,659.76,1.14251472]
[1751314695499,0.26357247,660.66,659.77,1.14251472]
[1751314695697,0.26357247,660.66,659.78,1.14251472]
[1751314696001,0.26357247,660.66,659.79,1.14251472]
[1751314696200,0.26357247,660.66,659.8,1.14251472]
[1751314696400,0.26357247,660.66,659.81,1.14251472]
[1751314696700,0.26357247,660.66,659.82,1.14251472]
[1751314696897,0.26357247,660.66,659.83,1.14251472]
[1751314697200,0.26357247,660.66,659.84,1.14251472]
[1751314697400,0.26357247,660.66,659.85,1.14251472]
[1751314697601,0.26357247,660.66,659.86,1.14251472]
[1751314697797,0.26357247,660.66,659.87,1.14251472]
[1751314697999,0.26357247,660.66,659.88,1.14251472]
[1751314698198,0.26357247,660.66,659.89,1.14251472]
[1751314698402,0.26357247,660.66,659.9,1.14251472]
[1751314698599,0.26357247,660.66,659.91,1.14251472]
[1751314698802,0.26357247,660.66,659.92,1.14251472]
[1751314699102,0.26357247,660.66,659.93,1.14251472]
[1751314699402,0.26357247,660.66,659.71,1.13298524]
[1751314699403,0.26357247,660.66,659.94,1.14251472]
[1751314699602,0.26357247,660.66,659.95,1.14251472]
[1751314699796,0.26357247,660.66,659.96,1.14251472]
[1751314699998,0.26357247,660.66,659.97,1.14251472]
[1751314700198,0.26357247,660.66,659.98,1.14251472]
[1751314700399,0.26357247,660.66,659.99,1.14251472]
[1751314700700,0.26357247,660.66,660.0,1.14251472]
[1751314700900,0.26357247,660.66,660.01,1.14251472]
[1751314701200,0.26357247,660.66,659.7,1.13298524]
[1751314701399,0.26357247,660.66,659.71,2.27554142]
[1751314701604,0.26357247,660.66,659.72,1.14255618]
[1751314701900,0.26357247,660.66,659.73,1.14255618]
[1751314702101,0.26357247,660.66,659.74,1.14255618]
[1751314702301,0.26357247,660.66,659.75,1.14255618]
[1751314702502,0.26357247,660.66,659.76,1.14255618]
[1751314702702,0.26357247,660.66,659.77,1.14255618]
[1751314702902,0.26357247,660.66,659.78,1.14255618]
[1751314703202,0.26357247,660.66,659.79,1.14255618]
[1751314703402,0.26357247,660.66,659.8,1.14255618]
[1751314703602,0.26357247,660.66,659.81,1.14255618]
[1751314703902,0.26357247,660.66,659.82,1.14255618]
[1751314704205,0.26357247,660.66,659.83,1.14255618]
[1751314704406,0.26357247,660.66,659.84,1.14255618]
[1751314704702,0.26357247,660.66,659.85,1.14255618]
[1751314704906,0.26357247,660.66,659.86,1.14255618]
[1751314705106,0.26357247,660.66,659.87,1.14255618]
[1751314705304,0.26357247,660.66,659.88,1.14255618]
[1751314705604,0.26357247,660.66,659.89,1.14255618]
[1751314705807,0.26357247,660.66,659.9,1.14255618]
[1751314706105,0.26357247,660.66,659.91,1.14255618]
[1751314706305,0.26357247,660.66,659.92,1.14255618]
[1751314706507,0.26357247,660.66,659.93,1.14255618]
[1751314706804,0.26357247,660.66,659.94,1.14255618]
[1751314707003,0.26357247,660.66,659.95,1.14255618]
[1751314707208,0.26357247,660.66,659.96,1.14255618]
[1751314707409,0.26357247,660.66,659.62,1.13298524]
[1751314707710,0.26357247,660.66,659.63,1.14226196]
[1751314707910,0.26357247,660.66,659.64,1.14226196]
[1751314708105,0.26357247,660.66,659.65,1.14226196]
[1751314708309,0.26357247,660.66,659.66,1.14226196]
[1751314708507,0.26357247,660.66,659.67,1.14226196]
[1751314708710,0.26357247,660.66,659.68,1.14226196]
[1751314709007,0.26357247,660.66,659.69,1.14226196]
[1751314709204,0.26357247,660.66,659.7,1.14226196]
[1751314709409,0.26357247,660.66,659.71,1.14226196]
[1751314709610,0.26357247,660.66,659.72,1.14226196]
[1751314709810,0.26357247,660.66,659.73,1.14226196]
[1751314710110,0.26357247,660.66,659.74,1.14226196]
[1751314710311,0.26357247,660.66,659.75,1.14226196]
[1751314710506,0.26357247,660.66,659.76,1.14226196]
[1751314710707,0.26357247,660.66,659.77,1.14226196]
[1751314710908,0.26357247,660.66,659.78,1.14226196]
[1751314711111,0.26357247,660.66,659.79,1.14226196]
[1751314711310,0.26357247,660.66,659.64,1.13298524]
[1751314711311,0.26357247,660.66,659.8,1.14226196]
[1751314711510,0.26357247,660.66,659.81,1.14226196]
[1751314711711,0.26357247,660.66,659.82,1.14226196]
[1751314711908,0.26357247,660.66,659.83,1.14226196]
[1751314712109,0.26357247,660.66,659.84,1.14226196]
[1751314712307,0.26357247,660.66,659.85,1.14226196]
[1751314712608,0.26357247,660.66,659.86,1.14226196]
[1751314712813,0.26357247,660.66,659.87,1.14226196]
[1751314713013,0.26357247,660.66,659.88,1.14226196]
[1751314713313,0.26357247,660.66,659.89,1.14226196]
[1751314713614,0.26357247,660.66,659.9,1.14226196]
[1751314713809,0.26357247,660.66,659.91,1.14226196]
[1751314714008,0.26357247,660.66,659.92,1.14226196]
[1751314714315,0.26357247,660.66,659.93,1.14226196]
[1751314714614,0.26357247,660.66,659.94,1.14226196]
[1751314714813,0.26357247,660.66,659.95,1.14226196]
[1751314715014,0.26357247,660.66,659.96,1.14226196]
[1751314715314,0.26357247,660.66,659.97,1.14226196]
[1751314715612,0.26357247,660.66,659.98,1.14226196]
[1751314715812,0.26357247,660.66,659.99,1.14226196]
[1751314716114,0.26357247,660.66,659.69,1.13298524]
[1751314716309,0.26357247,660.66,659.7,2.27534344]
[1751314716509,0.26357247,660.66,659.71,1.1423582]
[1751314716711,0.26357247,660.66,659.72,1.1423582]
[1751314716912,0.26357247,660.66,659.73,1.1423582]
[1751314717110,0.26357247,660.66,659.74,1.1423582]
[1751314717313,0.26357247,660.66,659.75,1.1423582]
[1751314717615,0.26357247,660.66,659.76,1.1423582]
[1751314717812,0.26357247,660.66,659.77,1.1423582]
[1751314718109,0.26357247,660.66,659.78,1.1423582]
[1751314718314,0.26357247,660.66,659.79,1.1423582]
[1751314718513,0.26357247,660.66,659.8,1.1423582]
[1751314718809,0.26357247,660.66,659.81,1.1423582]
[1751314719010,0.26357247,660.66,659.82,1.1423582]
[1751314719208,0.26357247,660.66,659.83,1.1423582]
[1751314719406,0.26357247,660.66,659.84,1.1423582]
[1751314719609,0.26357247,660.66,659.85,1.1423582]
[1751314719913,0.26357247,660.66,659.72,1.13298524]
[1751314719914,0.26357247,660.66,659.86,1.1423582]
[1751314720211,0.26357247,660.66,659.87,1.1423582]
[1751314720414,0.26357247,660.66,659.88,1.1423582]
[1751314720616,0.26357247,660.66,659.89,1.1423582]
[1751314720814,0.26357247,660.66,659.9,1.1423582]
[1751314721010,0.26357247,660.66,659.41,2.25561312]
[1751314721011,0.26357247,660.66,659.91,1.1423582]
[1751314721215,0.26357247,660.66,659.92,1.1423582]
[1751314721415,0.26357247,660.66,659.93,1.1423582]
[1751314721716,0.26357247,660.66,659.94,1.1423582]
[1751314721914,0.26357247,660.66,659.95,1.1423582]
[1751314722118,0.26357247,660.66,659.96,1.1423582]
[1751314722316,0.26357247,660.66,659.97,1.1423582]
[1751314722612,0.26357247,660.66,659.98,1.1423582]
[1751314722811,0.26357247,660.66,659.99,1.1423582]
[1751314723018,0.26357247,660.66,660.0,1.1423582]
[1751314723319,0.26357247,660.66,659.37,0.26362638]
[1751314723320,0.26357247,660.66,659.72,1.13298524]
[1751314723617,0.26357247,660.66,659.73,1.14282147]
[1751314723814,0.26357247,660.66,659.74,1.14282147]
[1751314724018,0.26357247,660.66,659.75,1.14282147]
[1751314724218,0.26357247,660.66,659.76,1.14282147]
[1751314724417,0.26357247,660.66,659.77,1.14282147]
[1751314724618,0.26357247,660.66,659.78,1.14282147]
[1751314724818,0.26357247,660.66,659.79,1.14282147]
[1751314725018,0.26357247,660.66,659.8,1.14282147]
[1751314725219,0.26357247,660.66,659.81,1.14282147]
[1751314725519,0.26357247,660.66,659.82,1.14282147]
[1751314725715,0.26357247,660.66,659.83,1.14282147]
[1751314725919,0.26357247,660.66,659.84,1.14282147]
[1751314726119,0.26357247,660.66,659.85,1.14282147]
[1751314726315,0.26357247,660.66,659.86,1.14282147]
[1751314726519,0.26357247,660.66,659.87,1.14282147]
[1751314726715,0.26357247,660.66,659.88,1.14282147]
[1751314726919,0.26357247,660.66,659.89,1.14282147]
[1751314727120,0.26357247,660.66,659.9,1.14282147]
[1751314727319,0.26357247,660.66,659.91,1.14282147]
[1751314727615,0.26357247,660.66,659.92,1.14282147]
[1751314727819,0.26357247,660.66,659.93,1.14282147]
[1751314728016,0.26357247,660.66,659.94,1.14282147]
[1751314728215,0.26357247,660.66,659.95,1.14282147]
[1751314728418,0.26357247,660.66,659.64,1.13298524]
[1751314728419,0.26357247,660.66,659.96,1.14282147]
[1751314728617,0.26357247,660.66,659.64,1.13298524]
[1751314728813,0.26357247,660.66,659.65,2.27616181]
[1751314729021,0.26357247,660.66,659.66,1.14317657]
[1751314729215,0.26357247,660.66,659.67,1.14317657]
[1751314729418,0.26357247,660.66,659.68,1.14317657]
[1751314729616,0.26357247,660.66,659.69,1.14317657]
[1751314729821,0.26357247,660.66,659.7,1.14317657]
[1751314730018,0.26357247,660.66,659.71,1.14317657]
[1751314730321,0.26357247,660.66,659.72,1.14317657]
[1751314730523,0.26357247,660.66,659.73,1.14317657]
[1751314730722,0.26357247,660.66,659.74,1.14317657]
[1751314730923,0.26357247,660.66,659.75,1.14317657]
[1751314731120,0.26357247,660.66,659.76,1.14317657]
[1751314731419,0.26357247,660.66,659.77,1.14317657]
[1751314731617,0.26357247,660.66,659.78,1.14317657]
[1751314731915,0.26357247,660.66,659.79,1.14317657]
[1751314732121,0.26357247,660.66,659.8,1.14317657]
[1751314732318,0.26357247,660.66,659.81,1.14317657]
[1751314732517,0.26357247,660.66,659.82,1.14317657]
[1751314732723,0.26357247,660.66,659.83,1.14317657]
[1751314732923,0.26357247,660.66,659.84,1.14317657]
[1751314733123,0.26357247,660.66,659.85,1.14317657]
[1751314733424,0.26357247,660.66,659.86,1.14317657]
[1751314733623,0.26357247,660.66,659.87,1.14317657]
[1751314733822,0.26357247,660.66,659.88,1.14317657]
[1751314734023,0.26357247,660.66,659.89,1.14317657]
[1751314734220,0.26357247,660.66,659.9,1.14317657]
[1751314734424,0.26357247,660.66,659.91,1.14317657]
[1751314734622,0.26357247,660.66,659.92,1.14317657]
[1751314734921,0.26357247,660.66,659.93,1.14317657]
[1751314735126,0.26357247,660.66,659.94,1.14317657]
[1751314735321,0.26357247,660.66,659.95,1.14317657]
[1751314735521,0.26357247,660.66,659.96,1.14317657]
[1751314735722,0.26357247,660.66,659.97,1.14317657]
[1751314735921,0.26357247,660.66,659.7,1.13298524]
[1751314736125,0.26357247,660.66,659.71,1.1432033]
[1751314736426,0.26357247,660.66,659.72,1.1432033]
[1751314736728,0.26357247,660.66,659.73,1.1432033]
[1751314737026,0.26357247,660.66,659.74,1.1432033]
[1751314737228,0.26357247,660.66,659.75,1.1432033]
[1751314737426,0.26357247,660.66,659.76,1.1432033]
[1751314737624,0.26357247,660.66,659.77,1.1432033]
[1751314737827,0.26357247,660.66,659.78,1.1432033]
[1751314738027,0.26357247,660.66,659.79,1.1432033]
[1751314738226,0.26357247,660.66,659.8,1.1432033]
[1751314738427,0.26357247,660.66,659.81,1.1432033]
[1751314738627,0.26357247,660.66,659.82,1.1432033]
[1751314738831,0.26357247,660.66,659.83,1.1432033]
[1751314739034,0.26357247,660.66,659.54,1.13298524]
[1751314739229,0.26357247,660.66,659.55,1.14408296]
[1751314739528,0.26357247,660.66,659.56,2.2770682]
[1751314739732,0.26357247,660.66,659.57,1.14408296]
[1751314740033,0.26357247,660.66,659.58,1.14408296]
[1751314740228,0.26357247,660.66,659.59,1.14408296]
[1751314740431,0.26357247,660.66,659.6,1.14408296]
[1751314740629,0.26357247,660.66,659.61,1.14408296]
[1751314740833,0.26357247,660.66,659.62,1.14408296]
[1751314741033,0.26357247,660.66,659.63,1.14408296]
[1751314741229,0.26357247,660.66,659.64,1.14408296]
[1751314741434,0.26357247,660.66,659.65,1.14408296]
[1751314741629,0.26357247,660.66,659.57,1.952]
[1751314741630,0.26357247,660.66,659.66,1.14408296]
[1751314741833,0.26357247,660.66,659.67,1.14408296]
[1751314742034,0.26357247,660.66,659.68,1.14408296]
[1751314742235,0.26357247,660.66,659.69,1.14408296]
[1751314742438,0.26357247,660.66,659.7,1.14408296]
[1751314742732,0.26357247,660.66,659.71,1.14408296]
[1751314742934,0.26357247,660.66,659.72,1.14408296]
[1751314743138,0.26357247,660.66,659.57,1.952]
[1751314743439,0.26357247,660.66,659.58,1.14246706]
[1751314743737,0.26357247,660.66,659.59,1.14246706]
[1751314743932,0.26357247,660.66,659.6,1.14246706]
[1751314744136,0.26357247,660.66,659.61,1.14246706]
[1751314744333,0.26357247,660.66,659.62,1.14246706]
[1751314744534,0.26357247,660.66,659.63,1.14246706]
[1751314744734,0.26357247,660.66,659.64,1.14246706]
[1751314744937,0.26357247,660.66,659.65,1.14246706]
[1751314745237,0.26357247,660.66,659.66,1.14246706]
[1751314745438,0.26357247,660.66,659.67,1.14246706]
[1751314745733,0.26357247,660.66,659.68,1.14246706]
[1751314745936,0.26357247,660.66,659.69,1.14246706]
[1751314746135,0.26357247,660.66,659.7,1.14246706]
[1751314746337,0.26357247,660.66,659.57,1.952]
[1751314746534,0.26357247,660.66,659.58,1.14171524]
[1751314746739,0.26357247,660.66,659.59,1.14171524]
[1751314746939,0.26357247,660.66,659.6,1.14171524]
[1751314747235,0.26357247,660.66,659.61,1.14171524]
[1751314747436,0.26357247,660.66,659.62,1.14171524]
[1751314747638,0.26357247,660.66,659.63,1.14171524]
[1751314747934,0.26357247,660.66,659.64,1.14171524]
[1751314748138,0.26357247,660.66,659.65,1.14171524]
[1751314748340,0.26357247,660.66,659.66,1.14171524]
[1751314748638,0.26357247,660.66,659.67,1.14171524]
[1751314748836,0.26357247,660.66,659.68,1.14171524]
[1751314749036,0.26357247,660.66,659.57,1.952]
[1751314749338,0.26357247,660.66,659.58,1.14116881]
[1751314749538,0.26357247,660.66,659.59,1.14116881]
[1751314749736,0.26357247,660.66,659.57,1.952]
[1751314749737,0.26357247,660.66,659.6,1.14116881]
[1751314749939,0.26357247,660.66,659.61,1.14116881]
[1751314750136,0.26357247,660.66,659.62,1.14116881]
[1751314750437,0.26357247,660.66,659.63,1.14116881]
[1751314750738,0.26357247,660.66,659.64,1.14116881]
[1751314750939,0.26357247,660.66,659.65,1.14116881]
[1751314751137,0.26357247,660.66,659.66,1.14116881]
[1751314751337,0.26357247,660.66,659.67,1.14116881]
[1751314751637,0.26357247,660.66,659.48,1.13298524]
[1751314751842,0.26357247,660.66,659.49,1.14089018]
[1751314752039,0.26357247,660.66,659.5,1.14089018]
[1751314752239,0.26357247,660.66,659.51,1.14089018]
[1751314752439,0.26357247,660.66,659.52,1.14089018]
[1751314752642,0.26357247,660.66,659.53,1.14089018]
[1751314752838,0.26357247,660.66,659.54,1.14089018]
[1751314753040,0.26357247,660.66,659.55,1.14089018]
[1751314753239,0.26357247,660.66,659.56,1.14089018]
[1751314753440,0.26357247,660.66,659.57,1.14089018]
[1751314753745,0.26357247,660.66,659.58,1.14089018]
[1751314753940,0.26357247,660.66,659.59,1.14089018]
[1751314754241,0.26357247,660.66,659.6,1.14089018]
[1751314754440,0.26357247,660.66,659.61,1.14089018]
[1751314754640,0.26357247,660.66,659.62,1.14089018]
[1751314754845,0.26357247,660.66,659.63,1.14089018]
[1751314755042,0.26357247,660.66,659.64,1.14089018]
[1751314755244,0.26357247,660.66,659.65,1.14089018]
[1751314755445,0.26357247,660.66,659.66,1.14089018]
[1751314755640,0.26357247,660.66,659.58,2.21]
[1751314755842,0.26357247,660.66,659.59,1.14051007]
[1751314756042,0.26357247,660.66,659.6,1.14051007]
[1751314756246,0.26357247,660.66,659.61,1.14051007]
[1751314756446,0.26357247,660.66,659.62,1.14051007]
[1751314756644,0.26357247,660.66,659.63,1.14051007]
[1751314756841,0.26357247,660.66,659.64,1.14051007]
[1751314757143,0.26357247,660.66,659.65,1.14051007]
[1751314757341,0.26357247,660.66,659.66,1.14051007]
[1751314757540,0.26357247,660.66,659.58,2.21]
[1751314757744,0.26357247,660.66,659.59,1.14058299]
[1751314757943,0.26357247,660.66,659.58,2.21]
[1751314757944,0.26357247,660.66,659.6,1.14058299]
[1751314758145,0.26357247,660.66,659.61,1.14058299]
[1751314758345,0.26357247,660.66,659.62,1.14058299]
[1751314758645,0.26357247,660.66,659.63,3.90958299]
[1751314758844,0.26357247,660.66,659.64,1.14058299]
[1751314759148,0.26357247,660.66,659.65,1.14058299]
[1751314759348,0.26357247,660.66,659.66,1.14058299]
[1751314759548,0.26357247,660.66,659.63,2.769]
[1751314759848,0.26357247,660.66,659.64,1.14041019]
[1751314760048,0.26357247,660.66,659.65,1.14041019]
[1751314760249,0.26357247,660.66,659.66,1.14041019]
[1751314760550,0.26357247,660.66,659.63,2.769]
[1751314760850,0.26357247,660.66,659.64,1.14035382]
[1751314761049,0.26357247,660.66,659.65,1.14035382]
[1751314761350,0.26357247,660.66,659.66,1.14035382]
[1751314761550,0.26357247,660.66,659.63,2.769]
[1751314761845,0.26357247,660.66,659.64,1.14030591]
[1751314762047,0.26357247,660.66,659.65,1.14030591]
[1751314762247,0.26357247,660.66,659.66,1.14030591]
[1751314762447,0.26357247,660.66,659.63,2.769]
[1751314762647,0.26357247,660.66,659.64,1.14026848]
[1751314762845,0.26357247,660.66,659.65,1.14026848]
[1751314763049,0.26357247,660.66,659.66,1.14026848]
[1751314763249,0.26357247,660.66,659.63,2.769]
[1751314770156,0.26357247,660.66,659.64,1.445]
[1751314778664,0.26357247,660.66,659.65,2.144]
[1751314780468,0.26357247,660.66,659.66,2.265]
[1751314789774,3.7759625,660.61,659.66,2.265]
[1751314790772,3.7759625,660.6,659.66,2.265]
[1751314792270,3.7759625,660.59,659.66,2.265]
[1751314792476,3.7759625,660.59,659.65,2.144]
[1751314793777,3.7759625,660.58,659.65,2.144]
[1751314794377,3.7759625,660.57,659.65,2.144]
[1751314795175,3.7759625,660.57,659.66,1.445]
[1751314795379,3.7759625,660.56,659.66,1.445]
[1751314795574,3.7759625,660.56,659.67,2.5]
[1751314796478,3.7759625,660.55,659.67,2.5]
[1751314797375,3.7759625,660.54,659.67,2.5]
[1751314798579,3.7759625,660.6,659.67,2.5]
[1751314799180,3.7759625,660.62,659.67,2.5]
[1751314799681,3.7759625,660.61,659.67,2.5]
[1751314801279,3.7759625,660.58,659.67,2.5]
[1751314802279,3.7759625,660.53,659.67,2.5]
[1751314802674,3.7759625,660.5,659.67,2.5]
[1751314805985,3.7759625,660.51,659.67,2.5]
[1751314806481,3.7759625,660.55,659.67,2.5]
[1751314807379,3.7759625,660.56,659.67,2.5]
[1751314808583,3.7759625,660.49,659.67,2.5]
[1751314808981,3.7759625,660.48,659.67,2.5]
[1751314809681,3.7759625,660.48,659.66,1.445]
[1751314810180,3.7759625,660.46,659.66,1.445]
[1751314812389,3.7759625,660.46,659.67,2.258]
[1751314813690,5.2863475,660.62,659.67,2.258]
[1751314814386,0.26357247,660.66,659.67,2.258]
[1751314815993,3.7759625,660.59,659.67,2.258]
[1751314816393,3.7759625,660.56,659.67,2.258]
[1751314816992,3.7759625,660.6,659.67,2.258]
[1751314817389,3.7759625,660.65,659.67,2.258]
[1751314818090,3.7759625,660.64,659.67,2.258]
[1751314818590,3.7759625,660.65,659.67,2.258]
[1751314818995,3.7759625,660.65,659.68,2.84]
[1751314819494,3.7759625,660.62,659.69,1.445]
[1751314821093,4.03953497,660.66,659.69,1.445]
[1751314821801,3.7759625,660.65,659.69,1.445]
[1751314822199,0.26357247,660.66,659.69,1.445]
[1751314828402,3.7759625,660.64,659.69,1.445]
[1751314829406,3.7759625,660.64,659.7,2.147]
[1751314830106,0.26357247,660.66,659.7,2.147]
[1751314843719,4.03953497,660.66,659.7,2.147]
[1751314844217,3.7759625,660.65,659.7,2.147]
[1751314844724,4.03953497,660.66,659.7,2.147]
[1751314845919,3.7759625,660.63,659.7,2.147]
[1751314848421,0.26357247,660.66,659.7,2.147]
[1751314848721,0.26357247,660.66,659.68,2.84]
[1751314858239,3.7759625,660.61,659.68,2.84]
[1751314859136,3.7759625,660.61,659.42,1.13298524]
[1751314859338,3.7759625,660.61,659.43,1.13974941]
[1751314859535,3.7759625,660.61,659.44,1.13974941]
[1751314859835,3.7759625,660.61,659.45,1.13974941]
[1751314860132,3.7759625,660.61,659.46,1.13974941]
[1751314860334,3.7759625,660.61,659.47,1.13974941]
[1751314860535,3.7759625,660.61,659.48,1.13974941]
[1751314860737,3.7759625,660.61,659.49,1.13974941]
[1751314860937,3.7759625,660.61,659.5,1.13974941]
[1751314861136,3.7759625,660.61,659.51,1.13974941]
[1751314861335,3.7759625,660.61,659.52,1.13974941]
[1751314861538,3.7759625,660.61,659.53,1.13974941]
[1751314861736,3.7759625,660.61,659.54,1.13974941]
[1751314861936,0.26357247,660.66,659.55,1.13974941]
[1751314861937,3.7759625,660.6,659.55,1.13974941]
[1751314862140,3.7759625,660.6,659.56,1.13974941]
[1751314862440,3.7759625,660.6,659.57,1.13974941]
[1751314862737,3.7759625,660.6,659.58,1.13974941]
[1751314863038,3.7759625,660.6,659.59,1.13974941]
[1751314863236,3.7759625,660.6,659.6,1.13974941]
[1751314863541,3.7759625,660.6,659.42,1.13298524]
[1751314863542,3.7759625,660.65,659.61,1.13974941]
[1751314863736,3.7759625,660.65,659.41,1.986]
[1751314863737,3.7759625,660.65,659.62,1.13974941]
[1751314863937,3.7759625,660.65,659.63,1.13974941]
[1751314864140,0.26357247,660.66,659.64,1.13974941]
[1751314864339,0.26357247,660.66,659.65,1.13974941]
[1751314864539,0.26357247,660.66,659.66,1.13974941]
[1751314864743,0.26357247,660.66,659.43,1.13298524]
[1751314864937,0.26357247,660.66,659.44,1.14015831]
[1751314865141,0.26357247,660.66,659.45,1.14015831]
[1751314865342,0.26357247,660.66,659.46,1.14015831]
[1751314865542,0.26357247,660.66,659.47,1.14015831]
[1751314865842,0.26357247,660.66,659.48,1.14015831]
[1751314866041,0.26357247,660.66,659.49,1.14015831]
[1751314866237,0.26357247,660.66,659.5,1.14015831]
[1751314866436,0.26357247,660.66,659.51,1.14015831]
[1751314866641,0.26357247,660.66,659.52,1.14015831]
[1751314866842,0.26357247,660.66,659.53,1.14015831]
[1751314867040,0.26357247,660.66,659.54,1.14015831]
[1751314867243,0.26357247,660.66,659.55,1.14015831]
[1751314867443,0.26357247,660.66,659.56,1.14015831]
[1751314867640,0.26357247,660.66,659.57,1.14015831]
[1751314867943,0.26357247,660.66,659.58,1.14015831]
[1751314868144,0.26357247,660.66,659.41,1.986]
[1751314868145,0.26357247,660.66,659.59,1.14015831]
[1751314868447,0.26357247,660.66,659.6,1.14015831]
[1751314868645,0.26357247,660.66,659.41,1.986]
[1751314868843,0.26357247,660.66,659.42,1.1412325]
[1751314869141,0.26357247,660.66,659.43,1.1412325]
[1751314869442,0.26357247,660.66,659.44,1.1412325]
[1751314869647,0.26357247,660.66,659.45,1.1412325]
[1751314869845,0.26357247,660.66,659.46,1.1412325]
[1751314870145,0.26357247,660.66,659.47,1.1412325]
[1751314870348,0.26357247,660.66,659.48,1.1412325]
[1751314870645,0.26357247,660.66,659.49,1.1412325]
[1751314870845,4.03953497,660.66,659.5,1.1412325]
[1751314871148,4.03953497,660.66,659.51,1.1412325]
[1751314871348,4.03953497,660.66,659.52,1.1412325]
[1751314871644,4.03953497,660.66,659.41,1.986]
[1751314871645,4.03953497,660.66,659.53,1.1412325]
[1751314871848,4.03953497,660.66,659.54,1.1412325]
[1751314872149,4.03953497,660.66,659.55,1.1412325]
[1751314872348,3.7759625,660.65,659.56,1.1412325]
[1751314872547,3.7759625,660.65,659.41,1.986]
[1751314872548,3.7759625,660.65,659.57,1.1412325]
[1751314872748,3.7759625,660.65,659.58,1.1412325]
[1751314872947,3.7759625,660.65,659.59,1.1412325]
[1751314873245,3.7759625,660.65,659.6,1.1412325]
[1751314873449,3.7759625,660.64,659.61,1.1412325]
[1751314873649,3.7759625,660.64,659.62,1.1412325]
[1751314873846,3.7759625,660.64,659.63,1.1412325]
[1751314874146,3.7759625,660.51,659.64,1.1412325]
[1751314874450,3.7759625,660.51,659.45,1.13298524]
[1751314874646,3.7759625,660.51,659.46,1.14244476]
[1751314874952,3.7759625,660.51,659.47,1.14244476]
[1751314875149,3.7759625,660.51,659.48,1.14244476]
[1751314875348,3.7759625,660.51,659.49,1.14244476]
[1751314875548,3.7759625,660.51,659.5,1.14244476]
[1751314875844,3.7759625,660.51,659.51,1.14244476]
[1751314876048,3.7759625,660.51,659.52,1.14244476]
[1751314876250,3.7759625,660.51,659.53,1.14244476]
[1751314876546,3.7759625,660.51,659.54,1.14244476]
[1751314876748,3.7759625,660.51,659.55,1.14244476]
[1751314876947,3.7759625,660.51,659.56,1.14244476]
[1751314877144,3.7759625,660.51,659.57,1.14244476]
[1751314877348,3.7759625,660.51,659.58,1.14244476]
[1751314877649,0.26357247,660.66,659.59,1.14244476]
[1751314877847,0.26357247,660.66,659.6,1.14244476]
[1751314878045,0.26357247,660.66,659.61,1.14244476]
[1751314878245,3.7759625,660.97,659.62,1.14244476]
[1751314878550,0.26372227,660.4,659.63,1.14244476]
[1751314878746,3.7759625,660.97,659.64,1.14244476]
[1751314878951,0.2636953,660.21,659.65,1.14244476]
[1751314879151,0.2636953,660.21,659.41,1.986]
[1751314879351,3.7759625,660.98,659.42,1.14227915]
[1751314879548,3.7759625,660.98,659.43,1.14227915]
[1751314879748,3.7759625,660.96,659.44,1.14227915]
[1751314879948,3.7759625,660.96,659.45,1.14227915]
[1751314880148,3.7759625,660.97,659.46,1.14227915]
[1751314880348,3.7759625,660.97,659.47,1.14227915]
[1751314880552,0.26371428,660.59,659.48,1.14227915]
[1751314880752,0.26371428,660.59,659.49,1.14227915]
[1751314880952,0.26371428,660.59,659.5,1.14227915]
[1751314881152,0.26371428,660.59,659.51,1.14227915]
[1751314881352,0.26371428,660.59,659.52,1.14227915]
[1751314881549,0.26371428,660.59,659.53,1.14227915]
[1751314881753,0.26371428,660.59,659.54,1.14227915]
[1751314881948,0.26371428,660.59,659.55,1.14227915]
[1751314882154,0.26371428,660.59,659.56,1.14227915]
[1751314882353,0.26371428,660.59,659.57,1.14227915]
[1751314882555,0.26371428,660.59,659.58,1.14227915]
[1751314882755,0.26371428,660.59,659.59,1.14227915]
[1751314882956,0.26371428,660.59,659.6,1.14227915]
[1751314883155,0.26371428,660.59,659.41,1.986]
[1751314883352,0.26371428,660.59,659.42,1.14202983]
[1751314883551,0.26371428,660.59,659.43,1.14202983]